bitfinex/quotes_BTCUSD_20250204
["timestamp","ask_amount","ask_price","bid_price","bid_amount"]
[1738683356753,0.00121536,99359.0,99358.0,0.00046821]
[1738683356981,1.5,99363.0,99358.0,0.00046821]
[1738683357623,0.150967,99359.0,99358.0,0.00046821]
[1738683357828,0.15218236,99359.0,99358.0,0.00046821]
[1738683358037,0.15732949,99359.0,99358.0,0.00046821]
[1738683358858,1.80732949,99359.0,99358.0,0.00046821]
[1738683359063,1.80611413,99359.0,99358.0,0.00046821]
[1738683359273,0.151023,99323.0,99321.0,0.08123188]
[1738683359503,0.151023,99323.0,99321.0,0.08170081]
[1738683359724,0.00635525,99322.0,99321.0,0.00046893]
[1738683360166,0.15635525,99322.0,99321.0,0.00046893]
[1738683360371,0.28174031,99322.0,99321.0,0.00046893]
[1738683360579,0.28052495,99322.0,99321.0,0.00046893]
[1738683360783,1.65513989,99322.0,99321.0,0.00046893]
[1738683361023,0.00513989,99322.0,99321.0,0.00046893]
[1738683361663,0.0050538,99322.0,99321.0,0.00046893]
[1738683361870,0.0050538,99322.0,99321.0,0.10285399]
[1738683362078,0.277613,99348.0,99321.0,0.10406209]
[1738683362316,0.08244724,99347.0,99322.0,0.10238506]
[1738683362528,0.151021,99324.0,99322.0,0.10238506]
[1738683362738,0.00121536,99345.0,99323.0,0.10238506]
[1738683363357,0.01,99363.0,99323.0,0.10238506]
[1738683363358,0.150982,99350.0,99341.0,0.150994]
[1738683363608,0.150982,99350.0,99324.0,0.00120806]
[1738683363609,0.01272732,99364.0,99359.0,0.150966]
[1738683363815,0.0001066,99367.0,99365.0,0.150958]
[1738683364024,0.0001066,99367.0,99366.0,0.10238506]
[1738683364676,0.0001066,99367.0,99366.0,0.10359267]
[1738683364908,0.0001066,99367.0,99366.0,0.1040616]
[1738683365112,0.0001066,99367.0,99366.0,0.10285399]
[1738683365532,0.0001066,99367.0,99366.0,0.00046893]
[1738683365767,0.15132196,99367.0,99366.0,0.00046893]
[1738683365973,0.1501066,99367.0,99366.0,0.00046893]
[1738683366187,0.0001066,99367.0,99366.0,0.10285399]
[1738683366603,0.0001066,99367.0,99366.0,0.10406144]
[1738683366811,0.0001066,99367.0,99366.0,0.10285399]
[1738683368140,0.00731064,99367.0,99366.0,0.10285399]
[1738683368924,0.158526,99367.0,99366.0,0.00046893]
[1738683369344,0.1711118,99367.0,99366.0,0.00046893]
[1738683369538,1.66989644,99367.0,99366.0,0.00046893]
[1738683370782,1.66989644,99367.0,99366.0,0.0003059]
[1738683370981,1.97437622,99367.0,99366.0,0.0003059]
[1738683371311,0.023,99366.0,99321.0,0.00022386]
[1738683371488,0.15,99359.0,99325.0,0.10238506]
[1738683371721,0.151019,99326.0,99325.0,0.10238506]
[1738683371929,0.201298,99355.0,99327.0,0.151015]
[1738683372144,0.201298,99355.0,99328.0,0.10238506]
[1738683372145,0.15,99353.0,99328.0,0.10238506]
[1738683372356,0.151019,99325.0,99324.0,0.00046902]
[1738683372535,0.201356,99327.0,99324.0,0.00046902]
[1738683372785,0.15,99341.0,99325.0,0.10238506]
[1738683372786,0.151018,99326.0,99325.0,0.10238506]
[1738683372990,0.151017,99327.0,99325.0,0.10238506]
[1738683373418,0.151019,99325.0,99324.0,0.00046902]
[1738683373588,0.15223436,99325.0,99324.0,0.00046902]
[1738683373821,0.151019,99325.0,99324.0,0.00046902]
[1738683374027,0.30223436,99325.0,99324.0,0.00046902]
[1738683374230,0.301019,99325.0,99324.0,0.00046902]
[1738683374440,0.44379976,99325.0,99324.0,0.00046902]
[1738683374670,0.54618482,99325.0,99324.0,0.00046902]
[1738683374896,0.173,99321.0,99304.0,0.00022407]
[1738683375116,0.301049,99305.0,99304.0,0.00069402]
[1738683376258,0.40343406,99305.0,99304.0,0.00069402]
[1738683376481,0.42643406,99305.0,99304.0,0.00069402]
[1738683376683,1.92643406,99305.0,99304.0,0.00069402]
[1738683377306,1.92643406,99305.0,99284.0,0.08987535]
[1738683377307,0.311055,99301.0,99300.0,0.9088538]
[1738683377459,0.311055,99301.0,99238.0,0.08145595]
[1738683377460,0.15,99285.0,99238.0,0.08145595]
[1738683377664,0.151133,99250.0,99249.0,0.08170203]
[1738683377873,0.151133,99250.0,99249.0,0.00047015]
[1738683378082,0.30234836,99250.0,99249.0,0.00047015]
[1738683378277,0.301133,99250.0,99249.0,0.00047015]
[1738683378477,0.301133,99250.0,99238.0,0.00022407]
[1738683378478,0.30115,99239.0,99238.0,0.00022407]
[1738683379097,1.80115,99239.0,99238.0,0.00022407]
[1738683379595,1.5,99239.0,99238.0,0.00022407]
[1738683379731,0.00046816,99250.0,99238.0,0.00022407]
[1738683379933,0.06270004,99279.0,99244.0,0.151142]
[1738683380111,0.08123188,99269.0,99245.0,0.10359419]
[1738683380321,0.01227346,99283.0,99246.0,0.10359406]
[1738683380562,0.08123188,99285.0,99248.0,0.10238506]
[1738683380763,0.201456,99278.0,99252.0,0.10238506]
[1738683381097,0.00803708,99277.0,99252.0,0.10238506]
[1738683381298,0.00852715,99277.0,99252.0,0.10238506]
[1738683381424,0.201464,99273.0,99257.0,0.151121]
[1738683381624,0.151115,99262.0,99258.0,0.10238506]
[1738683381864,0.0410118,99284.0,99258.0,0.10238506]
[1738683382065,0.15964415,99261.0,99258.0,0.10238506]
[1738683382326,0.00121536,99277.0,99258.0,0.10238506]
[1738683382543,0.00852715,99260.0,99259.0,0.15232792]
[1738683382796,0.281579,99316.0,99288.0,0.151075]
[1738683382797,0.201402,99304.0,99288.0,0.151075]
[1738683383000,0.01012155,99298.0,99264.0,0.173]
[1738683383201,0.08123188,99309.0,99265.0,0.00120848]
[1738683383202,0.201399,99306.0,99265.0,0.00120848]
[1738683383404,0.01012155,99305.0,99269.0,0.15]
[1738683383651,0.01012155,99305.0,99303.0,0.151052]
[1738683383825,0.08123188,99326.0,99302.0,0.201405]
[1738683383826,0.08123188,99326.0,99304.0,0.10238506]
[1738683384045,0.01015326,99325.0,99319.0,0.151028]
[1738683384248,0.151021,99324.0,99320.0,0.10238506]
[1738683384506,0.151024,99322.0,99320.0,0.10238506]
[1738683384725,0.01015326,99325.0,99320.0,0.10238506]
[1738683385059,0.151023,99323.0,99320.0,0.10238506]
[1738683385258,0.01015326,99325.0,99320.0,0.10238506]
[1738683385668,0.151022,99323.0,99320.0,0.10238506]
[1738683386054,0.20258036,99322.0,99304.0,0.00014021]
[1738683386258,0.151049,99306.0,99305.0,0.10238506]
[1738683386475,0.201361,99324.0,99305.0,0.10238506]
[1738683386679,0.201361,99324.0,99306.0,0.00120824]
[1738683386680,1.5,99324.0,99306.0,0.00120824]
[1738683386886,0.151045,99308.0,99307.0,0.10238506]
[1738683387094,1.5,99324.0,99307.0,0.10238506]
[1738683387518,0.01040943,99323.0,99307.0,0.10238506]
[1738683387746,0.151025,99321.0,99307.0,0.10238506]
[1738683387951,0.151042,99310.0,99307.0,0.10238506]
[1738683388153,0.21177943,99320.0,99307.0,0.10238506]
[1738683388357,1.5,99324.0,99307.0,0.10238506]
[1738683388531,0.151044,99309.0,99307.0,0.10238506]
[1738683388685,0.00121536,99319.0,99307.0,0.10238506]
[1738683389081,0.151049,99305.0,99304.0,0.00014021]
[1738683389282,0.15226436,99305.0,99304.0,0.00014021]
[1738683389491,0.30226436,99305.0,99304.0,0.00014021]
[1738683389700,0.31147398,99305.0,99304.0,0.00014021]
[1738683389920,0.31147398,99305.0,99304.0,0.10252527]
[1738683389921,0.01042498,99305.0,99304.0,0.10252527]
[1738683390121,1.5,99314.0,99304.0,0.10252527]
[1738683390325,0.31673253,99340.0,99305.0,0.10238506]
[1738683390536,0.201353,99328.0,99310.0,0.15104]
[1738683390728,0.201371,99319.0,99311.0,0.10238506]
[1738683390864,1.51035792,99324.0,99311.0,0.10238506]
[1738683391064,0.01035867,99318.0,99311.0,0.10238506]
[1738683391293,0.151031,99317.0,99311.0,0.10238506]
[1738683391500,0.01035867,99317.0,99311.0,0.10238506]
[1738683391665,0.01015326,99325.0,99311.0,0.10238506]
[1738683392093,0.01015326,99325.0,99312.0,0.00120826]
[1738683392294,0.01035867,99324.0,99322.0,0.151023]
[1738683392495,0.01015326,99325.0,99324.0,0.15102]
[1738683392735,0.01015326,99325.0,99324.0,0.10238506]
[1738683393123,0.02057328,99325.0,99324.0,0.10238506]
[1738683393326,0.01015326,99325.0,99324.0,0.10238506]
[1738683393543,0.01015326,99325.0,99304.0,0.01237889]
[1738683393544,0.01015326,99325.0,99304.0,0.00014021]
[1738683393751,0.151048,99306.0,99304.0,0.00014021]
[1738683393952,0.00121536,99305.0,99304.0,0.00014021]
[1738683394178,0.0116867,99305.0,99304.0,0.00014021]
[1738683394334,0.1616867,99305.0,99304.0,0.00014021]
[1738683395784,0.30108,99285.0,99253.0,0.08123188]
[1738683395938,0.50246506,99285.0,99284.0,0.00036437]
[1738683396145,0.51276494,99285.0,99284.0,0.00036437]
[1738683396342,0.38737988,99285.0,99284.0,0.00036437]
[1738683396547,1.88737988,99285.0,99284.0,0.00036437]
[1738683396745,0.01,99279.0,99240.0,0.08947811]
[1738683396952,0.151147,99241.0,99240.0,0.08994627]
[1738683397378,0.15236236,99241.0,99240.0,0.08994627]
[1738683397552,0.01201496,99253.0,99240.0,0.08994627]
[1738683397927,0.08123188,99273.0,99240.0,0.08994627]
[1738683398133,0.08123188,99273.0,99240.0,0.00046816]
[1738683398134,0.01004843,99252.0,99240.0,0.00046816]
[1738683398335,0.151145,99242.0,99241.0,0.10238506]
[1738683398471,0.151133,99250.0,99242.0,0.151145]
[1738683398672,0.151145,99243.0,99241.0,0.10238506]
[1738683399092,0.01003358,99242.0,99241.0,0.10238506]
[1738683399294,0.151123,99257.0,99242.0,0.151145]
[1738683399546,0.01225478,99265.0,99244.0,0.201523]
[1738683399800,0.15,99270.0,99247.0,0.201517]
[1738683400020,0.01196314,99267.0,99248.0,0.10238506]
[1738683400235,0.151131,99252.0,99248.0,0.10238506]
[1738683400396,0.15,99270.0,99248.0,0.10238506]
[1738683400548,0.31673253,99300.0,99250.0,0.10238506]
[1738683400751,0.201444,99283.0,99258.0,0.40299]
[1738683400987,0.39393253,99300.0,99259.0,0.10359383]
[1738683401208,0.0474,99310.0,99283.0,0.151081]
[1738683401209,0.01194817,99294.0,99283.0,0.151081]
[1738683401419,0.0474,99310.0,99288.0,0.151074]
[1738683401660,0.08123188,99316.0,99289.0,0.10238506]
[1738683401867,0.08123188,99326.0,99299.0,0.10238506]
[1738683402072,0.151025,99322.0,99300.0,0.20261632]
[1738683402465,0.151021,99324.0,99315.0,0.151034]
[1738683402668,0.00717675,99321.0,99303.0,0.00120825]
[1738683402897,0.201355,99327.0,99304.0,0.10238506]
[1738683403096,0.00717675,99323.0,99304.0,0.10238506]
[1738683403302,0.151023,99323.0,99305.0,0.00120825]
[1738683403476,0.151033,99317.0,99306.0,0.25343206]
[1738683403676,0.00856789,99322.0,99308.0,0.151044]
[1738683403892,0.15,99329.0,99309.0,0.10238506]
[1738683404042,0.00740285,99321.0,99309.0,0.10238506]
[1738683404397,0.15842885,99321.0,99312.0,0.151037]
[1738683404564,0.151033,99316.0,99313.0,0.10238506]
[1738683404769,0.00121536,99315.0,99313.0,0.10238506]
[1738683404962,0.00121536,99319.0,99300.0,0.00014035]
[1738683405152,0.00121536,99318.0,99301.0,0.10238506]
[1738683405350,0.00121536,99318.0,99300.0,0.00014035]
[1738683405351,0.151053,99303.0,99300.0,0.00014035]
[1738683405570,0.151055,99301.0,99300.0,0.00014035]
[1738683406043,0.30227036,99301.0,99300.0,0.00014035]
[1738683406182,0.30844096,99301.0,99300.0,0.00014035]
[1738683406380,0.37453046,99301.0,99300.0,0.00014035]
[1738683406584,1.80844096,99301.0,99300.0,0.00014035]
[1738683406997,1.91082602,99301.0,99300.0,0.00014035]
[1738683407414,0.301087,99280.0,99279.0,0.00022407]
[1738683407759,0.301087,99280.0,99279.0,0.10274954]
[1738683407760,0.00714541,99280.0,99279.0,0.10274954]
[1738683408415,0.351415,99297.0,99279.0,0.10274954]
[1738683408613,0.151086,99281.0,99279.0,0.00036448]
[1738683408828,0.151081,99285.0,99280.0,0.10238506]
[1738683409030,0.151063,99297.0,99280.0,0.10238506]
[1738683409166,0.08123188,99309.0,99289.0,0.151072]
[1738683409373,0.00121536,99308.0,99279.0,0.00036448]
[1738683409576,0.151077,99287.0,99280.0,0.10238506]
[1738683409772,0.15108,99285.0,99280.0,0.10238506]
[1738683410012,0.151064,99296.0,99285.0,0.151078]
[1738683410187,0.151074,99289.0,99286.0,0.10238506]
[1738683410440,0.151075,99289.0,99286.0,0.10238506]
[1738683410585,0.00121536,99314.0,99286.0,0.08571839]
[1738683410794,0.151076,99288.0,99286.0,0.08571839]
[1738683411228,0.15,99307.0,99279.0,0.00036448]
[1738683411423,0.15,99307.0,99280.0,0.10238506]
[1738683411684,0.00121536,99306.0,99280.0,0.10238506]
[1738683411852,0.09347268,99319.0,99282.0,0.10238506]
[1738683412029,0.08123188,99319.0,99283.0,0.02420845]
[1738683412413,0.08123188,99318.0,99298.0,0.10238506]
[1738683412621,0.402754,99316.0,99298.0,0.10238506]
[1738683412824,0.402754,99316.0,99279.0,0.00036448]
[1738683412825,0.201395,99307.0,99279.0,0.00036448]
[1738683413062,0.15,99306.0,99280.0,0.30383506]
[1738683413189,0.201399,99305.0,99291.0,0.151069]
[1738683413399,0.15,99306.0,99280.0,0.30383506]
[1738683413400,0.151062,99297.0,99292.0,0.10238506]
[1738683413604,0.15,99306.0,99279.0,0.20181548]
[1738683413605,0.00121536,99302.0,99279.0,0.20181548]
[1738683413963,0.201401,99304.0,99280.0,0.10238506]
[1738683414118,0.15106,99298.0,99282.0,0.151084]
[1738683414449,0.151068,99293.0,99284.0,0.151081]
[1738683414653,0.151074,99289.0,99285.0,0.10238506]
[1738683414862,0.151087,99280.0,99279.0,0.00036448]
[1738683415031,0.201422,99294.0,99279.0,0.10274954]
[1738683415235,0.201426,99292.0,99280.0,0.10238506]
[1738683415441,0.151085,99282.0,99280.0,0.10238506]
[1738683416012,0.151085,99282.0,99279.0,0.00036448]
[1738683416013,0.151087,99280.0,99279.0,0.00036448]
[1738683416414,0.15230236,99280.0,99279.0,0.00036448]
[1738683417382,0.30230236,99280.0,99279.0,0.00036448]
[1738683417536,0.30607562,99280.0,99279.0,0.00036448]
[1738683417738,0.40857034,99280.0,99279.0,0.00036448]
[1738683417941,0.15,99279.0,99238.0,0.00022407]
[1738683418155,0.15,99277.0,99239.0,0.10238506]
[1738683418356,0.151137,99248.0,99239.0,0.10238506]
[1738683418553,0.15,99271.0,99239.0,0.10238506]
[1738683418811,0.151148,99240.0,99238.0,0.00069223]
[1738683419128,0.00488949,99239.0,99238.0,0.00069223]
[1738683419723,0.00488949,99239.0,99238.0,0.10307729]
[1738683419924,1.5,99258.0,99238.0,0.10307729]
[1738683420131,0.151125,99255.0,99239.0,0.10238506]
[1738683420334,0.201505,99253.0,99239.0,0.10238506]
[1738683420566,0.15115,99239.0,99238.0,0.00069223]
[1738683420974,0.30236536,99239.0,99238.0,0.00069223]
[1738683421111,0.30115,99239.0,99238.0,0.00069223]
[1738683421720,0.15115,99239.0,99238.0,0.00069223]
[1738683421939,0.08123188,99269.0,99238.0,0.00069223]
[1738683421940,0.201496,99258.0,99238.0,0.25422729]
[1738683422149,0.08123188,99269.0,99239.0,0.10238506]
[1738683422318,0.0775,99291.0,99243.0,0.10238506]
[1738683422544,0.08123188,99267.0,99245.0,0.10238506]
[1738683422746,0.151139,99247.0,99245.0,0.10238506]
[1738683422958,0.151149,99240.0,99238.0,0.00069223]
[1738683423183,0.15,99257.0,99239.0,0.10238506]
[1738683423387,0.201517,99247.0,99239.0,0.10238506]
[1738683423586,0.201495,99258.0,99248.0,0.151135]
[1738683423587,0.151122,99258.0,99248.0,0.151135]
[1738683423792,0.00121536,99257.0,99238.0,0.00069223]
[1738683424006,0.08123188,99267.0,99238.0,0.00069223]
[1738683424007,0.146149,99240.0,99238.0,0.00069223]
[1738683424203,0.00121536,99239.0,99238.0,0.00069223]
[1738683425662,0.146149,99240.0,99238.0,0.00069223]
[1738683425881,0.01212541,99246.0,99238.0,0.10307729]
[1738683426122,0.151144,99243.0,99239.0,0.10238506]
[1738683426336,0.151141,99245.0,99239.0,0.10238506]
[1738683426535,0.201489,99261.0,99239.0,0.10238506]
[1738683426763,0.00121536,99260.0,99239.0,0.10238506]
[1738683426949,0.08123188,99280.0,99241.0,0.023]
[1738683427150,0.08123188,99256.0,99242.0,0.10238506]
[1738683427375,0.00121536,99255.0,99238.0,0.00069223]
[1738683427521,0.15115,99239.0,99238.0,0.00069223]
[1738683427719,0.20153,99241.0,99238.0,0.00069223]
[1738683427920,0.15115,99239.0,99238.0,0.00069223]
[1738683428119,0.33763336,99239.0,99238.0,0.00069223]
[1738683428341,0.30115,99239.0,99238.0,0.00069223]
[1738683428543,0.00473545,99239.0,99238.0,0.10307729]
[1738683428741,0.15,99260.0,99238.0,0.10307729]
[1738683428984,0.00473177,99239.0,99238.0,0.00069223]
[1738683429305,0.00121536,99239.0,99238.0,0.00069223]
[1738683429467,0.00594755,99239.0,99238.0,0.00069223]
[1738683430766,0.00594755,99239.0,99238.0,0.25422829]
[1738683430767,0.00473219,99239.0,99238.0,0.25422829]
[1738683431258,0.08123188,99266.0,99255.0,0.151125]
[1738683431459,0.151125,99255.0,99238.0,0.10307729]
[1738683431672,0.00470369,99265.0,99239.0,0.10359418]
[1738683431873,0.201454,99278.0,99240.0,0.12538506]
[1738683432072,0.151118,99260.0,99250.0,0.151133]
[1738683432351,0.201497,99257.0,99240.0,0.10238506]
[1738683432506,0.151147,99241.0,99240.0,0.10238506]
[1738683432712,0.0151118,99260.0,99240.0,0.10238506]
[1738683432921,0.28270388,99269.0,99240.0,0.10238506]
[1738683433121,0.00478763,99259.0,99240.0,0.10238506]
[1738683433349,0.201458,99277.0,99259.0,0.151119]
[1738683433556,0.15111,99266.0,99260.0,0.10238506]
[1738683433777,0.01216725,99279.0,99260.0,0.10238506]
[1738683433778,0.201456,99277.0,99260.0,0.10238506]
[1738683433991,0.0001067,99279.0,99260.0,0.10238506]
[1738683434362,0.0001067,99279.0,99260.0,0.25350206]
[1738683434567,0.0001067,99279.0,99220.0,0.00022407]
[1738683434766,0.00132206,99279.0,99239.0,0.10238506]
[1738683435144,0.00132206,99279.0,99224.0,0.201562]
[1738683435145,0.151123,99257.0,99245.0,0.201521]
[1738683435348,0.201501,99255.0,99246.0,0.10238506]
[1738683435493,0.151122,99258.0,99246.0,0.10238506]
[1738683435705,0.151123,99257.0,99246.0,0.10238506]
[1738683435898,0.151117,99261.0,99247.0,0.201517]
[1738683436084,0.201464,99273.0,99248.0,0.10238506]
[1738683436442,0.15,99268.0,99248.0,0.10238506]
[1738683436587,0.00121536,99267.0,99250.0,0.151132]
[1738683436790,0.151121,99258.0,99251.0,0.25351606]
[1738683437025,0.201476,99267.0,99251.0,0.10238506]
[1738683437232,0.15,99268.0,99251.0,0.10238506]
[1738683437233,0.151115,99263.0,99251.0,0.10238506]
[1738683437431,1.5,99278.0,99263.0,0.151112]
[1738683437637,0.0001067,99279.0,99264.0,0.10238506]
[1738683437838,0.0001067,99279.0,99277.0,0.151091]
[1738683438154,0.0001067,99279.0,99278.0,0.27659359]
[1738683438356,0.0001067,99279.0,99278.0,0.27538506]
[1738683439191,0.0001067,99279.0,99278.0,0.28781414]
[1738683439404,0.1316134,99304.0,99303.0,0.151052]
[1738683439612,0.1316134,99304.0,99303.0,0.25343706]
[1738683441203,0.1316134,99304.0,99303.0,0.10238506]
[1738683441468,0.1316134,99304.0,99271.0,0.0768]
[1738683441776,0.00121536,99303.0,99282.0,0.10238506]
[1738683441987,0.31673253,99300.0,99282.0,0.10238506]
[1738683442218,0.00121536,99299.0,99282.0,0.10238506]
[1738683442426,0.201433,99289.0,99265.0,0.15111]
[1738683442646,0.00121536,99299.0,99250.0,0.0492]
[1738683442647,0.201403,99303.0,99279.0,0.10238506]
[1738683442849,0.201407,99301.0,99279.0,0.10238506]
[1738683443050,0.00121536,99300.0,99279.0,0.10238506]
[1738683443275,0.201411,99299.0,99274.0,0.151096]
[1738683443480,0.00121536,99298.0,99280.0,0.10238506]
[1738683443686,0.00121536,99298.0,99268.0,0.201473]
[1738683443687,0.151089,99279.0,99257.0,0.151122]
[1738683443891,0.301089,99279.0,99252.0,0.24060711]
[1738683444094,0.301089,99279.0,99254.0,0.201502]
[1738683444298,0.301089,99279.0,99252.0,0.08947811]
[1738683445114,0.48277406,99279.0,99252.0,0.08947811]
[1738683445528,0.5179782,99279.0,99278.0,4.9e-07]
[1738683445735,0.5179782,99279.0,99252.0,0.08947811]
[1738683445736,0.301128,99253.0,99252.0,0.08947811]
[1738683445956,0.301128,99253.0,99252.0,0.08961866]
[1738683446374,0.301128,99253.0,99252.0,0.00014055]
[1738683446809,0.151124,99256.0,99252.0,0.00014055]
[1738683447052,0.21375181,99272.0,99256.0,0.201497]
[1738683447263,0.201446,99282.0,99257.0,0.10238506]
[1738683447465,0.08123188,99283.0,99257.0,0.10238506]
[1738683447790,0.0769,99297.0,99258.0,0.00120894]
[1738683447791,0.01314254,99296.0,99258.0,0.00120894]
[1738683447991,0.01314254,99296.0,99265.0,0.20148]
[1738683448195,0.08123188,99289.0,99252.0,0.00014055]
[1738683448405,0.151124,99256.0,99253.0,0.10238506]
[1738683448625,0.151119,99259.0,99253.0,0.10238506]
[1738683448830,0.00121536,99265.0,99253.0,0.10238506]
[1738683448979,0.15,99265.0,99253.0,0.10238506]
[1738683449312,0.201472,99270.0,99253.0,0.10238506]
[1738683449516,0.20144,99285.0,99253.0,0.10238506]
[1738683449726,0.15121536,99284.0,99264.0,0.15111]
[1738683449990,0.15121536,99284.0,99253.0,0.10238506]
[1738683449991,0.15121536,99284.0,99255.0,0.151124]
[1738683450202,0.15121536,99284.0,99256.0,0.10238506]
[1738683450409,0.151127,99254.0,99253.0,0.10238506]
[1738683450609,0.151127,99254.0,99252.0,0.00014055]
[1738683451033,0.00121536,99253.0,99252.0,0.00014055]
[1738683451880,0.151127,99254.0,99252.0,0.00014055]
[1738683452304,0.151128,99254.0,99252.0,0.00014055]
[1738683453069,0.05662776,99253.0,99252.0,0.00014055]
[1738683453272,0.15121536,99253.0,99252.0,0.00014055]
[1738683453821,0.23151536,99253.0,99252.0,0.00014055]
[1738683453957,0.2303,99253.0,99252.0,0.00014055]
[1738683454140,0.33268506,99253.0,99252.0,0.00014055]
[1738683454342,0.48946597,99253.0,99252.0,0.00014055]
[1738683454597,0.50092495,99253.0,99252.0,0.00014055]
[1738683455147,0.38924404,99253.0,99252.0,0.00014055]
[1738683455424,0.40771128,99253.0,99252.0,0.00014055]
[1738683455543,0.43071128,99253.0,99252.0,0.00014055]
[1738683456418,0.44071128,99253.0,99252.0,0.00014055]
[1738683456622,0.42224404,99253.0,99252.0,0.00014055]
[1738683456823,1.92224404,99253.0,99252.0,0.00022428]
[1738683457026,1.88924404,99253.0,99252.0,0.00022428]
[1738683457231,0.09175898,99253.0,99252.0,0.00022428]
[1738683457433,0.01145898,99253.0,99252.0,0.00022428]
[1738683457833,0.15114,99246.0,99237.0,0.15137607]
[1738683458043,0.00121536,99253.0,99241.0,0.10238506]
[1738683458219,0.201456,99277.0,99241.0,0.10238506]
[1738683458485,0.03736483,99276.0,99241.0,0.10238506]
[1738683458818,0.00121536,99276.0,99241.0,0.10238506]
[1738683458996,0.151138,99247.0,99241.0,0.10238506]
[1738683459231,0.01143594,99277.0,99240.0,0.00069244]
[1738683459232,0.151145,99242.0,99240.0,0.00069244]
[1738683459438,0.00121536,99241.0,99240.0,0.00069244]
[1738683459865,0.08123188,99269.0,99240.0,0.1030775]
[1738683460001,1.50121536,99268.0,99241.0,0.10238506]
[1738683460203,0.15,99265.0,99241.0,0.10238506]
[1738683460417,0.151147,99241.0,99240.0,0.00069244]
[1738683460626,0.15236236,99241.0,99240.0,0.00069244]
[1738683460848,0.30236236,99241.0,99240.0,0.00069244]
[1738683461050,0.37168804,99241.0,99240.0,0.00069244]
[1738683461695,0.301147,99241.0,99240.0,0.00069244]
[1738683463800,0.31278724,99241.0,99240.0,0.00069244]
[1738683464386,0.151147,99241.0,99240.0,0.00069244]
[1738683464710,0.15236236,99241.0,99240.0,0.00069244]
[1738683465318,0.15,99252.0,99240.0,0.00069244]
[1738683465319,0.201467,99272.0,99240.0,0.00069244]
[1738683465500,0.201492,99260.0,99242.0,0.151145]
[1738683465690,0.01185481,99269.0,99248.0,0.151135]
[1738683465890,0.00121536,99268.0,99243.0,0.10238506]
[1738683466101,0.201476,99267.0,99243.0,0.10238506]
[1738683466296,0.01152946,99270.0,99243.0,0.10238506]
[1738683466523,0.00121536,99269.0,99243.0,0.10238506]
[1738683466742,0.151138,99247.0,99243.0,0.10238506]
[1738683467185,0.151142,99244.0,99243.0,0.10238506]
[1738683467381,0.201474,99268.0,99243.0,0.10238506]
[1738683467582,0.00121536,99267.0,99243.0,0.10238506]
[1738683468018,0.151147,99241.0,99240.0,0.00069244]
[1738683468338,0.30236236,99241.0,99240.0,0.00069244]
[1738683468573,1.801147,99241.0,99240.0,0.00069244]
[1738683468825,1.90364172,99241.0,99240.0,0.00069244]
[1738683469052,1.801147,99241.0,99240.0,0.00069244]
[1738683470787,1.651147,99241.0,99240.0,0.00069244]
[1738683470988,0.151147,99241.0,99240.0,0.00069244]
[1738683471206,0.15236236,99241.0,99240.0,0.00069244]
[1738683471424,0.2229034,99241.0,99240.0,0.00069244]
[1738683471654,1.9740731,99241.0,99240.0,0.00069244]
[1738683472197,1.801147,99241.0,99240.0,0.00069244]
[1738683472554,1.81963621,99241.0,99240.0,0.00069244]
[1738683473119,0.31963621,99241.0,99240.0,0.00069244]
[1738683473551,0.16963621,99241.0,99240.0,0.00069244]
[1738683473759,0.01848921,99241.0,99240.0,0.00069244]
[1738683474005,0.01848921,99241.0,99240.0,0.2542255]
[1738683474205,0.15112,99259.0,99240.0,0.1030775]
[1738683474409,0.201462,99274.0,99244.0,0.201523]
[1738683474612,0.151129,99253.0,99246.0,0.151139]
[1738683474828,0.00121536,99265.0,99248.0,0.201515]
[1738683475057,0.151124,99256.0,99249.0,0.25351806]
[1738683475262,0.00121536,99263.0,99249.0,0.10238506]
[1738683475434,0.02252116,99271.0,99244.0,0.151142]
[1738683475669,0.151135,99249.0,99245.0,0.10238506]
[1738683475873,0.00121536,99270.0,99246.0,0.151139]
[1738683476179,0.00121536,99270.0,99247.0,0.10238506]
[1738683476386,0.0163369,99270.0,99247.0,0.10238506]
[1738683476795,0.151128,99253.0,99247.0,0.10238506]
[1738683476970,0.151126,99255.0,99247.0,0.10238506]
[1738683477179,0.01512154,99270.0,99247.0,0.10238506]
[1738683477180,0.00121536,99254.0,99247.0,0.10238506]
[1738683477394,0.201512,99250.0,99240.0,0.00069244]
[1738683477596,0.151147,99241.0,99240.0,0.00069244]
[1738683477993,0.15236236,99241.0,99240.0,0.00069244]
[1738683478778,0.17086794,99241.0,99240.0,0.00069244]
[1738683479175,0.16965258,99241.0,99240.0,0.00069244]
[1738683479377,0.01850558,99241.0,99240.0,0.1030775]
[1738683479720,0.16965258,99241.0,99240.0,0.00069244]
[1738683479878,0.2281376,99241.0,99240.0,0.00069244]
[1738683480088,0.16965258,99241.0,99240.0,0.00069244]
[1738683480293,0.01850558,99241.0,99240.0,0.1030775]
[1738683480480,0.04812094,99261.0,99240.0,0.1030775]
[1738683480680,0.04812094,99261.0,99241.0,0.10238506]
[1738683480923,0.151122,99258.0,99241.0,0.10359424]
[1738683481182,0.00121536,99257.0,99241.0,0.10238506]
[1738683481386,0.151147,99241.0,99240.0,0.00069244]
[1738683481814,0.15236236,99241.0,99240.0,0.00069244]
[1738683482352,0.15,99256.0,99240.0,0.00069244]
[1738683482562,0.151145,99242.0,99240.0,0.00069244]
[1738683482763,0.00121536,99241.0,99240.0,0.00069244]
[1738683483661,0.15114,99246.0,99240.0,0.00069244]
[1738683483867,0.151142,99244.0,99240.0,0.00069244]
[1738683484071,0.151146,99242.0,99240.0,0.00069244]
[1738683484490,0.00121536,99241.0,99240.0,0.00069244]
[1738683484700,0.2067563,99241.0,99240.0,0.00069244]
[1738683484912,0.20554094,99241.0,99240.0,0.00069244]
[1738683485121,0.330926,99241.0,99240.0,0.00069244]
[1738683485783,0.173,99239.0,99238.0,5.1e-07]
[1738683485989,0.173,99239.0,99237.0,5.8e-07]
[1738683485990,0.324151,99238.0,99237.0,5.8e-07]
[1738683486194,0.42653606,99238.0,99237.0,5.8e-07]
[1738683486772,1.92653606,99238.0,99237.0,5.8e-07]
[1738683487320,1.97455557,99238.0,99237.0,5.8e-07]
[1738683487521,0.361552,99230.0,99221.0,4.007e-05]
[1738683487764,0.324176,99222.0,99221.0,7e-08]
[1738683487967,0.324188,99214.0,99213.0,4.2e-07]
[1738683488172,0.3012,99206.0,99190.0,0.00022428]
[1738683488372,0.42658506,99206.0,99190.0,0.00022428]
[1738683488573,0.151223,99191.0,99190.0,0.00022428]
[1738683488760,0.27782342,99191.0,99190.0,0.00022428]
[1738683488970,1.92660806,99191.0,99190.0,0.00022428]